bitfinex-derivatives/quotes_ETHF0:USTF0_20260209
["timestamp","ask_amount","ask_price","bid_price","bid_amount"]
[1770647853702,6.70612561,2031.5,2030.1,6.82393549]
[1770647853994,6.70612561,2031.5,2030.1,13.1043049]
[1770647854200,6.70612561,2031.9,2030.7,6.30774]
[1770647854399,6.70612561,2031.9,2030.9,6.30704]
[1770647854600,6.70612561,2031.9,2030.9,4.924]
[1770647854805,0.00379067,2032.0,2030.9,4.924]
[1770647854806,0.00379067,2032.0,2031.0,6.06047]
[1770647854989,0.00379067,2032.0,2031.0,7.07482438]
[1770647855194,6.70612561,2032.8,2031.5,4.924]
[1770647855397,6.70612561,2032.6,2031.3,6.82393549]
[1770647855892,6.70612561,2032.6,2031.4,13.21938034]
[1770647856202,0.00502269,2032.6,2031.7,6.82393549]
[1770647856398,0.00502269,2032.6,2032.0,6.82393549]
[1770647856601,6.70612561,2033.4,2032.1,6.82393549]
[1770647856798,6.77112561,2032.9,2031.7,18.63415653]
[1770647856992,6.77112561,2032.9,2031.2,6.82393549]
[1770647857398,6.77112561,2032.9,2031.2,6.31802824]
[1770647857399,6.70612561,2032.5,2031.2,6.31802824]
[1770647857603,6.71072129,2032.5,2030.8,7.07031549]
[1770647857797,6.71072129,2032.5,2030.4,6.82393549]
[1770647857798,6.70612561,2031.8,2030.4,6.82393549]
[1770647858000,6.95242561,2031.5,2029.8,6.82393549]
[1770647858300,6.05873,2031.6,2029.2,6.82393549]
[1770647858301,6.70612561,2031.2,2029.2,6.82393549]
[1770647858504,6.70612561,2031.2,2029.9,6.82393549]
[1770647858704,6.70612561,2031.2,2030.0,6.29902563]
[1770647858896,6.70612561,2031.6,2030.1,6.82393549]
[1770647859099,6.70612561,2032.0,2030.5,0.24641]
[1770647859296,6.70612561,2032.0,2030.6,6.82393549]
[1770647859496,6.70612561,2032.0,2030.9,7.07029549]
[1770647859697,6.70612561,2032.0,2030.9,6.82393549]
[1770647860106,6.70612561,2032.0,2030.6,7.07033549]
[1770647860308,0.00459568,2032.5,2030.3,6.82393549]
[1770647860309,6.70612561,2031.8,2030.3,6.82393549]
[1770647860509,0.00459568,2032.5,2031.7,6.05832]
[1770647860704,6.70612561,2033.2,2032.2,4.924]
[1770647861006,0.065,2033.1,2032.2,11.74793549]
[1770647861207,0.065,2033.1,2032.2,6.82393549]
[1770647861407,1.28251612,2034.5,2033.2,6.82393549]
[1770647861613,28.03639224,2036.7,2034.6,6.82393549]
[1770647861817,0.00120789,2036.7,2035.2,6.04787]
[1770647862106,7.78206838,2036.6,2034.7,11.96207726]
[1770647862299,6.04471,2036.3,2035.3,6.32552341]
[1770647862502,7.78206838,2036.1,2034.4,6.39762249]
[1770647862710,6.98305293,2036.1,2034.6,0.64873472]
[1770647862904,6.98305293,2036.1,2033.9,14.28388318]
[1770647862905,6.98305293,2036.1,2034.5,6.39762249]
[1770647863107,6.04604,2035.9,2034.7,6.39762249]
[1770647863405,6.04708,2035.5,2034.4,0.005941]
[1770647863608,4.14189333,2036.4,2034.4,0.005941]
[1770647863609,7.42785014,2035.3,2034.8,6.34799215]
[1770647863804,7.42785014,2036.2,2034.8,6.34799215]
[1770647864004,6.88155014,2036.2,2035.2,6.0479]
[1770647864200,7.03093529,2036.6,2035.9,4.924]
[1770647864401,7.03093529,2036.6,2035.9,0.00419297]
[1770647864604,7.03093529,2036.6,2034.4,2.68918141]
[1770647865005,7.03093529,2036.6,2034.9,6.44243297]
[1770647865202,7.03093529,2036.6,2035.3,4.924]
[1770647865403,7.03093529,2036.6,2035.0,11.6368743]
[1770647865599,7.03093529,2036.6,2035.0,0.00352651]
[1770647865808,7.03093529,2036.6,2035.2,6.36200823]
[1770647866004,7.03093529,2036.6,2035.2,2.62634479]
[1770647866313,7.03093529,2036.6,2035.7,4.924]
[1770647866503,7.03093529,2036.6,2035.3,6.28840633]
[1770647866705,7.03093529,2036.6,2035.2,11.51850993]
[1770647866908,7.03093529,2036.6,2035.8,6.28840633]
[1770647867104,7.03093529,2036.6,2035.4,11.51850993]
[1770647867105,7.52630511,2037.7,2036.0,7.85758567]
[1770647867415,7.52630511,2037.7,2036.0,6.0456]
[1770647867609,7.52630511,2037.7,2036.3,7.85758567]
[1770647867809,7.52630511,2037.7,2036.5,7.85758567]
[1770647868008,7.52630511,2038.4,2036.5,7.85758567]
[1770647868205,7.53236134,2038.4,2036.7,7.85758567]
[1770647868405,7.53236134,2038.4,2036.6,5.12801525]
[1770647868406,7.52630511,2037.8,2036.6,5.12801525]
[1770647868611,7.52630511,2037.4,2036.5,0.0046955]
[1770647869005,7.52630511,2038.3,2036.5,0.0046955]
[1770647869303,0.00605623,2038.4,2037.0,7.85758567]
[1770647869509,7.53236134,2038.4,2037.0,7.85758567]
[1770647869711,7.53236134,2038.4,2037.2,7.85758567]
[1770647870006,7.53236134,2038.4,2037.3,11.75167912]
[1770647870213,7.53236134,2038.4,2037.4,7.85758567]
[1770647870214,0.00605623,2038.4,2037.4,7.85758567]
[1770647870414,0.00605623,2038.4,2037.8,4.924]
[1770647870603,7.53236134,2038.4,2037.5,6.2635597]
[1770647870809,7.52630511,2038.1,2036.6,7.85758567]
[1770647871007,7.52630511,2037.9,2036.6,7.85758567]
[1770647871309,13.56838511,2037.2,2035.8,7.85758567]
[1770647871513,7.52630511,2037.1,2035.8,7.85758567]
[1770647871701,7.52630511,2036.9,2035.9,6.23405847]
[1770647871903,7.52630511,2037.3,2035.9,13.90342567]
[1770647872108,7.52630511,2038.1,2036.6,7.85758567]
[1770647872313,0.0050126,2038.1,2037.0,7.85758567]
[1770647872503,7.52630511,2038.7,2037.2,7.85758567]
[1770647873008,7.52630511,2039.5,2037.4,7.85758567]
[1770647873203,7.52630511,2039.5,2037.6,7.85758567]
[1770647873416,7.52630511,2038.9,2037.6,7.85758567]
[1770647873715,7.52630511,2038.5,2037.1,7.85758567]
[1770647874114,0.00437314,2038.9,2037.7,6.39729564]
[1770647874115,7.53067825,2038.9,2037.7,6.39729564]
[1770647874314,0.14024141,2039.6,2038.7,13.89513567]
[1770647874514,7.52630511,2040.4,2039.2,7.85758567]
[1770647874914,7.52630511,2040.7,2038.9,7.85758567]
[1770647875109,7.52630511,2040.5,2038.9,7.85758567]
[1770647875314,7.53070206,2040.5,2039.3,6.24848144]
[1770647875511,7.53070206,2040.5,2039.0,14.10606711]
[1770647875816,7.52630511,2040.1,2038.9,0.00571617]
[1770647876013,7.52630511,2039.9,2038.9,0.00571617]
[1770647876311,0.00439695,2040.5,2039.4,7.85758567]
[1770647876713,7.53070206,2040.5,2039.0,7.85758567]
[1770647876914,7.52630511,2040.4,2039.0,7.85758567]
[1770647877115,7.52630511,2040.4,2039.2,4.924]
[1770647877418,6.03668695,2040.5,2038.9,7.86330184]
[1770647877419,7.52630511,2039.8,2038.9,0.00571617]
[1770647878017,7.52630511,2040.4,2039.1,7.85758567]
[1770647878213,7.52630511,2040.4,2039.4,6.03549]
[1770647878411,7.52630511,2042.6,2041.0,6.03079]
[1770647878719,7.52630511,2042.6,2040.7,0.24519]
[1770647878914,7.52630511,2041.9,2040.2,7.85758567]
[1770647879318,7.53066023,2041.9,2040.8,6.48678837]
[1770647879616,7.52630511,2041.8,2040.8,4.924]
[1770647879812,7.52630511,2041.4,2040.2,0.00581537]
[1770647880119,7.52630511,2041.2,2040.2,0.00581537]
[1770647880306,6.2744,2041.5,2040.2,0.00581537]
[1770647880307,7.52630511,2041.0,2040.2,0.00080277]
[1770647880506,7.52630511,2041.0,2040.3,4.924]
[1770647880713,7.52630511,2041.0,2040.3,6.32281927]
[1770647881011,7.52630511,2041.0,2039.0,0.24539]
[1770647881012,6.03119,2040.9,2039.6,7.85758567]
[1770647881211,6.03119,2040.9,2039.0,0.24539]
[1770647881212,7.52630511,2040.6,2039.2,7.85758567]
[1770647881423,7.52630511,2040.8,2039.2,7.85758567]
[1770647881615,7.52630511,2040.7,2039.2,7.85758567]
[1770647881818,6.27663,2040.8,2039.2,7.85758567]
[1770647881819,7.52630511,2040.3,2039.2,7.85758567]
[1770647882008,7.52630511,2040.5,2039.3,6.3557711]
[1770647882213,7.53259584,2040.3,2039.2,0.00528935]
[1770647882409,7.53259584,2040.3,2039.2,7.86287502]
[1770647882612,0.00629073,2040.3,2039.4,7.85758567]
[1770647882913,0.00629073,2040.3,2039.2,0.00528935]
[1770647882914,7.52630511,2039.4,2039.2,9.35e-06]
[1770647883112,7.52630511,2039.4,2038.2,7.85758567]
[1770647883314,7.52630511,2039.4,2037.8,7.85758567]
[1770647883512,40.8,2039.3,2038.3,6.28266305]
[1770647883711,7.52630511,2039.7,2038.3,6.28266305]
[1770647883712,7.52630511,2039.7,2038.4,7.85758567]
[1770647883920,7.52630511,2039.7,2038.6,7.85758567]
[1770647884120,6.03014,2041.3,2038.6,7.85758567]
[1770647884121,7.52630511,2040.5,2039.3,8.10293567]
[1770647884422,7.52630511,2041.3,2040.1,7.85758567]
[1770647884615,7.52630511,2042.1,2040.4,7.85758567]
[1770647884816,7.52630511,2041.7,2040.2,11.63498461]
[1770647885123,7.52630511,2041.1,2039.7,7.85758567]
[1770647885418,7.52630511,2040.8,2039.7,7.86189036]
[1770647885615,7.52630511,2040.8,2039.8,6.37701168]
[1770647885813,7.52630511,2040.4,2038.9,7.85758567]
[1770647886022,7.52630511,2040.2,2038.9,7.85758567]
[1770647886221,7.52630511,2040.2,2038.6,6.03788]
[1770647886222,7.52630511,2040.6,2039.3,7.85758567]
[1770647886412,7.52630511,2041.0,2039.6,7.85758567]
[1770647886813,7.52630511,2041.4,2040.2,7.85758567]
[1770647887014,7.52630511,2041.4,2040.2,8.10282567]
[1770647887214,6.02998,2041.3,2039.8,7.85758567]
[1770647887526,7.52630511,2040.2,2039.6,0.00413896]
[1770647887819,0.24525,2040.2,2039.0,7.85758567]
[1770647888025,7.52630511,2039.9,2038.3,7.85758567]
[1770647888318,7.52630511,2039.5,2037.9,7.85758567]
[1770647888522,7.52630511,2039.9,2038.5,7.85758567]
[1770647888718,7.52630511,2039.5,2038.3,6.51591446]
[1770647888915,7.52630511,2040.3,2038.5,7.85758567]
[1770647889117,7.52630511,2039.7,2038.6,6.51591446]
[1770647889319,7.52630511,2040.1,2038.7,7.85758567]
[1770647889717,7.52630511,2040.1,2038.8,7.85758567]
[1770647889718,7.53214656,2040.1,2038.8,7.85758567]
[1770647890114,7.77157511,2040.0,2038.8,7.85758567]
[1770647890320,0.00584145,2040.1,2039.0,7.85758567]
[1770647890723,0.00584145,2040.1,2039.1,14.35522563]
[1770647890924,7.52630511,2039.9,2038.1,7.85758567]
[1770647891221,7.52630511,2039.7,2038.1,14.35522563]
[1770647891417,7.52630511,2039.7,2038.8,8.64576282]
[1770647891619,7.52630511,2039.7,2037.1,8.85876486]
[1770647891620,1.87900318,2039.3,2037.8,7.85758567]
[1770647891922,1.87900318,2039.7,2038.1,7.85758567]
[1770647892125,1.87900318,2039.7,2038.0,12.40111129]
[1770647892126,2.62180545,2040.0,2038.3,7.85758567]
[1770647892423,0.00584145,2040.1,2039.0,13.89427567]
[1770647892624,2.3823769,2040.1,2038.7,7.85758567]
[1770647892921,6.28055,2039.5,2038.3,7.85758567]
[1770647893122,6.03379,2040.0,2038.5,7.85758567]
[1770647893123,2.98403025,2040.0,2038.5,7.85758567]
[1770647893329,2.98403025,2040.0,2038.8,6.30248602]
[1770647893522,0.00584145,2040.1,2038.6,7.85758567]
[1770647893722,2.9898717,2040.1,2038.9,2.5217642]
[1770647893922,2.9898717,2040.1,2038.6,7.85758567]
[1770647894130,3.46832695,2039.9,2038.2,7.85758567]
[1770647894324,3.46832695,2039.7,2038.2,7.85758567]
[1770647894525,3.46832695,2039.7,2038.4,7.85758567]
[1770647894729,0.24542,2038.8,2037.6,7.85758567]
[1770647895033,0.24542,2038.8,2037.2,8.23477681]
[1770647895324,6.28279,2038.8,2036.5,8.24199036]
[1770647895630,6.04027,2037.8,2035.8,8.24199036]
[1770647895925,6.15789402,2037.4,2035.8,8.24199036]
[1770647896234,0.14328404,2037.3,2035.8,8.24574936]
[1770647896427,0.00537267,2037.4,2036.6,8.22856035]
[1770647896933,0.14865671,2037.4,2035.8,8.23231935]
[1770647897129,40.8,2037.3,2035.8,8.23231935]
[1770647897428,40.8,2037.3,2036.0,8.23299983]
[1770647898026,40.8,2037.3,2036.2,8.23583218]
[1770647898232,40.8,2037.3,2036.3,8.23583218]
[1770647898530,0.00537267,2037.4,2036.3,14.69128739]
[1770647898726,0.00537267,2037.4,2036.4,8.23583218]
[1770647899123,0.00537267,2037.4,2036.6,8.23834817]
[1770647899327,40.8,2038.1,2036.7,8.23834817]
[1770647899520,0.01356336,2039.0,2037.5,8.23834817]
[1770647899722,0.01356336,2039.3,2037.5,8.23834817]
[1770647899930,0.01356336,2039.3,2037.7,8.23834817]
[1770647900131,0.24534,2039.4,2037.7,8.23834817]
[1770647900334,6.28148,2039.2,2037.9,8.23250487]
[1770647900625,43.39502229,2041.0,2039.0,8.23250487]
[1770647900826,6.03113,2040.9,2039.0,8.23250487]
[1770647901022,6.03113,2040.9,2038.9,0.2454]
[1770647901023,40.8,2040.8,2039.2,8.23699229]
[1770647901224,6.27783,2040.4,2038.2,8.23699229]
[1770647901629,0.00389753,2040.4,2038.9,8.23699229]
[1770647902026,6.27809,2040.3,2038.9,8.23699229]
[1770647902225,0.24537,2039.2,2038.2,0.00469716]
[1770647902425,6.03587,2039.3,2038.2,8.10333737]
[1770647902629,0.57558412,2040.0,2038.2,8.10333737]
[1770647902826,6.27967,2039.8,2038.4,8.09864021]
[1770647903129,0.32399089,2039.7,2038.4,8.09864021]
[1770647903327,0.32399089,2039.7,2038.2,0.00469716]
[1770647903328,6.28094,2039.4,2038.2,0.00469716]
[1770647903637,0.56934089,2039.4,2038.2,0.00469716]
[1770647903833,6.60550089,2039.2,2038.2,0.00469716]
[1770647904336,0.02074954,2039.1,2037.7,8.14607782]
[1770647904531,0.24529,2039.9,2038.1,8.14607782]
[1770647904733,0.26607954,2039.5,2038.1,8.14607782]
[1770647905231,0.24533,2039.5,2038.1,8.14607782]
[1770647905431,6.03352,2040.1,2038.1,8.15188518]
[1770647905737,0.24531,2039.7,2038.1,8.15188518]
[1770647906029,0.06857732,2039.0,2038.1,0.00580736]
[1770647906239,0.24543,2038.7,2037.6,8.09864021]
[1770647906539,6.28151,2039.2,2038.1,8.09864021]
[1770647906833,6.34549996,2038.8,2036.9,8.09864021]
[1770647907130,40.8,2038.7,2037.3,8.09864021]
[1770647907727,0.25698125,2038.6,2037.3,8.09864021]
[1770647908032,6.29489125,2038.6,2037.3,8.09864021]
[1770647908341,0.08409716,2038.5,2037.3,8.09864021]
[1770647908637,40.8,2038.7,2037.3,8.09864021]
[1770647908938,47.11518971,2038.7,2037.8,2.43766704]
[1770647909125,0.24546,2038.5,2037.3,8.09864021]
[1770647909330,6.28369,2038.5,2037.3,8.09864021]
[1770647909635,0.24553,2037.9,2036.9,0.00429287]
[1770647909939,0.24555,2037.7,2036.9,0.0031901]
[1770647910332,6.2843,2038.3,2036.9,8.10183031]
[1770647910533,6.39210979,2038.3,2036.9,8.10183031]
[1770647910730,0.24554,2037.8,2036.9,0.0031901]
[1770647910930,0.24554,2037.8,2036.9,8.10183031]
[1770647911130,0.05535381,2038.3,2037.0,6.42022912]
[1770647911336,6.34058381,2038.0,2037.0,6.42022912]
[1770647911536,6.34058381,2038.0,2036.9,0.0031901]
[1770647911736,6.28708,2037.4,2035.7,8.09864021]
[1770647911941,0.24562,2037.1,2035.7,8.09864021]
[1770647912241,31.733,2037.3,2035.7,8.09864021]
[1770647912439,40.8,2037.0,2035.7,8.09864021]
[1770647912943,40.80514458,2037.0,2035.7,8.10220623]
[1770647914242,40.80514458,2037.0,2035.9,8.09864021]
[1770647914645,6.47895016,2036.7,2035.7,0.00356602]
[1770647915148,6.47898016,2036.7,2035.7,0.00356602]
[1770647915343,6.47898016,2036.7,2035.1,8.09864021]
[1770647915344,0.37866019,2036.5,2035.1,8.09864021]
[1770647915839,0.13297019,2036.4,2035.1,8.09864021]
[1770647916034,0.24574,2036.1,2034.5,8.09864021]
[1770647916240,0.24572,2036.3,2034.9,8.09864021]
[1770647916442,31.742,2036.7,2034.9,8.09864021]
[1770647916640,0.24576,2036.0,2034.9,8.09864021]
[1770647917041,0.12385941,2036.3,2034.9,8.09864021]
[1770647917345,32.05828425,2036.7,2035.1,8.09864021]
[1770647917541,38.10180425,2036.7,2035.1,8.09864021]
[1770647917749,32.05828425,2036.7,2035.1,8.09864021]
[1770647917940,0.24574,2036.1,2035.1,8.09864021]
[1770647918139,0.25743208,2036.6,2035.1,8.09864021]
[1770647918340,41.04569,2036.5,2035.1,8.09864021]
[1770647918540,0.25743208,2036.4,2035.1,8.09864021]
[1770647919037,0.24572,2036.3,2035.1,8.09864021]
[1770647919640,0.44935418,2036.0,2034.6,8.09864021]
[1770647919844,0.44938418,2035.8,2034.6,8.09864021]
[1770647920044,0.11486654,2036.1,2034.6,8.09864021]
[1770647920441,0.24571,2036.4,2034.6,8.09864021]
[1770647920637,0.11486654,2035.8,2034.6,8.09864021]
[1770647920839,0.24581,2035.6,2034.6,8.09864021]
[1770647921039,0.07185837,2036.1,2034.6,8.09864021]
[1770647921437,0.07185837,2036.1,2034.9,8.09864021]
[1770647921637,0.24573,2036.2,2035.1,8.09864021]
[1770647922047,40.8,2036.5,2035.1,8.09864021]
[1770647922242,0.2457,2036.4,2035.1,8.09864021]
[1770647922844,0.24573,2036.2,2035.1,8.09864021]
[1770647923045,40.8,2036.5,2035.1,8.09864021]
[1770647923244,2.89053895,2037.2,2034.6,6.04971]
[1770647923245,0.00514458,2037.0,2035.3,8.09864021]
[1770647923445,0.00514458,2037.0,2035.5,8.09864021]
[1770647923845,0.00514458,2037.0,2035.4,6.75799823]
[1770647923846,40.8,2036.9,2036.3,1.79076736]
[1770647924046,40.8,2036.9,2036.3,1.79621785]
[1770647924240,0.24569,2036.6,2035.6,8.09864021]
[1770647924446,6.28961,2036.6,2034.9,8.09864021]
[1770647924646,0.24573,2036.2,2034.9,8.09864021]
[1770647924843,0.24579,2035.7,2034.9,8.09864021]
[1770647925038,0.24579,2035.7,2033.8,8.09864021]
[1770647925245,6.29229,2035.7,2033.8,8.10247904]
[1770647925541,0.24576,2036.0,2034.4,7.77736873]
[1770647925747,6.29141,2036.0,2034.6,7.77736873]
[1770647925943,0.24576,2036.0,2034.6,7.77736873]
[1770647926345,0.24576,2036.0,2034.8,7.78843414]
[1770647926346,0.24577,2035.9,2034.8,7.78843414]
[1770647926748,0.24578,2035.8,2034.4,7.78843414]
[1770647926944,31.762,2036.3,2034.6,7.79379766]
[1770647926945,0.24572,2036.3,2034.6,7.79379766]
[1770647927448,6.29052,2036.3,2034.6,7.79379766]
[1770647927848,31.764,2036.6,2035.0,7.79379766]
[1770647928147,0.24566,2036.8,2035.4,7.86077711]
[1770647928451,6.29047,2036.3,2035.4,0.0046147]
[1770647928750,0.24566,2036.8,2035.4,7.86539181]
[1770647929238,0.24571,2036.4,2035.4,7.86539181]
[1770647930046,0.24576,2036.0,2035.4,0.0046147]
[1770647930244,0.24576,2036.0,2035.0,7.89723411]
[1770647930444,0.24569,2036.5,2035.0,7.89723411]
[1770647930644,0.24575,2036.1,2035.0,7.89723411]
[1770647931048,40.8,2036.4,2035.0,8.14309411]
[1770647931244,40.8,2036.4,2035.0,8.14912593]
[1770647931953,0.24572,2036.3,2035.0,8.14912593]
[1770647932552,40.8,2036.4,2035.0,7.90326593]
[1770647932553,0.24577,2035.9,2035.0,7.90326593]
[1770647933249,46.84444,2036.4,2035.0,7.90326593]
[1770647933250,6.04619,2035.8,2035.0,1.82e-06]
[1770647933558,6.29296,2035.5,2034.2,7.91002221]
[1770647933942,37.81559,2035.7,2034.2,7.91002221]
[1770647933943,0.24587,2035.1,2034.2,7.91002221]
[1770647934456,40.70313451,2035.7,2033.4,7.91661774]
[1770647934457,0.24592,2034.7,2033.4,7.91661774]
[1770647934650,0.24585,2035.2,2033.6,7.91661774]
[1770647935262,0.24591,2034.8,2033.6,7.91661774]
[1770647935444,0.25028503,2034.8,2033.6,7.92159262]
[1770647936056,40.8,2034.7,2033.6,7.92159262]
[1770647936553,40.8,2034.7,2034.1,0.25097871]
[1770647936750,40.8,2034.7,2033.6,7.99891497]
[1770647937059,0.24585,2035.3,2033.8,7.25042628]
[1770647937448,40.8,2035.2,2034.0,7.25042628]
[1770647937755,31.775,2035.9,2034.4,7.25042628]
[1770647937956,6.99548438,2036.3,2034.8,7.25042628]
[1770647938155,0.00606306,2035.9,2035.0,7.25042628]
[1770647938560,3.13320451,2036.8,2035.2,7.25042628]
[1770647938759,7.00271443,2037.0,2036.3,1.25596736]
[1770647939058,0.2456,2037.3,2036.1,7.25042628]
[1770647939360,0.24564,2036.9,2035.6,7.25042628]
[1770647939657,6.04118,2037.5,2035.6,7.25042628]
[1770647939658,31.777,2037.8,2036.2,7.25042628]
[1770647940246,7.00271443,2037.6,2036.3,7.25042628]
[1770647940455,9.17365451,2037.7,2036.3,7.25042628]
[1770647940456,40.8,2037.5,2036.3,7.25042628]
[1770647940759,47.80858275,2037.5,2036.3,7.25042628]
[1770647941152,15.93359894,2036.8,2035.8,7.25042628]
[1770647941359,38.06634,2036.7,2035.6,7.25492419]
[1770647941654,0.24571,2036.4,2035.6,7.25492419]
[1770647942052,31.777,2036.7,2035.6,7.25492419]
[1770647942249,13.04687443,2036.5,2035.6,0.00449791]
[1770647942553,6.04657,2035.7,2034.7,7.25042628]
[1770647942761,10.13606894,2035.5,2034.4,7.25042628]
[1770647942954,0.24585,2035.2,2034.0,7.25042628]
[1770647943147,2.88754451,2035.5,2034.0,7.25042628]
[1770647943347,2.89158995,2035.5,2034.0,7.25406568]
[1770647943752,7.00271443,2034.9,2034.0,0.0036394]
[1770647943961,9.89025894,2034.9,2034.0,0.0036394]
[1770647944156,3.13341451,2035.0,2034.0,7.25406568]
[1770647944358,2.88754451,2035.2,2034.0,7.25406568]
[1770647944866,7.00271443,2035.0,2034.0,7.25406568]
[1770647945461,2.88754451,2035.2,2034.0,7.25406568]
[1770647945653,2.88754451,2035.3,2034.0,7.25406568]
[1770647945857,2.89158995,2035.5,2034.2,7.25042628]
[1770647946053,0.24582,2035.4,2034.2,7.25042628]
[1770647946260,9.89025894,2035.3,2034.2,7.25042628]
[1770647946459,40.8,2035.2,2034.2,7.25042628]
[1770647947163,0.00404544,2035.5,2034.2,7.25042628]
[1770647947658,0.00404544,2035.5,2034.4,7.25042628]
[1770647947958,7.00271443,2036.1,2034.8,7.25042628]
[1770647948165,31.778,2036.2,2034.8,7.25042628]
[1770647948462,7.00271443,2035.8,2034.8,7.25042628]
[1770647948757,0.24579,2035.7,2034.4,7.25042628]
[1770647948963,0.00513743,2035.7,2034.6,7.25042628]
[1770647949360,31.778,2036.2,2034.8,7.25042628]
[1770647949566,2.88754451,2036.8,2035.2,7.25042628]
[1770647949767,9.89025894,2037.0,2035.4,7.25042628]
[1770647949966,7.00271443,2037.0,2035.4,7.25042628]
[1770647950173,31.779,2037.1,2035.6,7.25042628]
[1770647950470,2.88754451,2037.9,2036.4,7.25042628]
[1770647950768,6.87594106,2037.9,2036.4,7.25042628]
[1770647950961,6.82275802,2037.3,2036.0,7.25042628]
[1770647951570,41.73491253,2037.2,2036.0,7.25042628]
[1770647951774,38.84736802,2037.2,2036.0,7.25042628]
[1770647951976,0.00356917,2037.3,2036.0,7.25042628]
[1770647952162,40.8,2037.8,2036.6,7.25042628]
[1770647952465,6.82005371,2037.7,2036.6,7.25042628]
[1770647952876,40.8,2037.8,2036.6,7.25042628]
[1770647953167,0.00596964,2037.8,2036.8,7.25042628]
[1770647953567,40.8,2037.7,2036.8,7.25042628]
[1770647953763,7.01276342,2037.6,2036.4,7.25042628]
[1770647954171,0.24556,2037.6,2036.4,7.25042628]
[1770647954674,6.24532045,2037.6,2036.4,7.25042628]
[1770647955071,40.8,2037.7,2036.4,7.25042628]
[1770647955273,40.8,2037.7,2035.9,12.34441966]
[1770647955274,0.00596964,2037.8,2036.6,7.25042628]
[1770647955774,40.8,2037.7,2036.6,7.25042628]
[1770647955978,0.00596964,2037.8,2036.6,7.25042628]
[1770647957067,0.00596964,2037.8,2036.8,6.88463223]
[1770647957273,5.61485552,2038.7,2037.0,6.88463223]
[1770647957478,5.62082516,2039.1,2037.4,6.88463223]
[1770647957668,37.38682516,2039.1,2037.4,6.88463223]
[1770647957870,5.62082516,2039.0,2037.4,6.88463223]
[1770647958268,4.10500761,2038.4,2037.5,6.88463223]
[1770647958477,0.24920044,2039.0,2037.5,6.88463223]
[1770647958678,0.00381044,2039.0,2037.6,6.88463223]
[1770647959080,5.47193556,2038.9,2037.6,6.88463223]
[1770647959479,5.71734556,2038.8,2037.6,6.88463223]
[1770647959877,0.00381044,2039.0,2037.6,6.88463223]
[1770647960477,0.00381044,2039.0,2037.9,7.39556596]
[1770647960678,5.43228502,2039.6,2038.0,7.15005596]
[1770647960877,5.43228502,2039.2,2038.0,7.15005596]
[1770647961074,0.24539,2039.0,2038.0,7.15005596]
[1770647961273,0.24539,2039.0,2037.4,0.00513429]
[1770647961274,11.41953401,2038.3,2037.4,4.29e-06]
[1770647961484,0.24552,2038.0,2037.4,4.29e-06]
[1770647961678,5.62628401,2037.8,2036.2,7.15005596]
[1770647961879,5.38075401,2038.2,2036.6,7.15005596]
[1770647962079,31.99847,2038.4,2036.6,7.15005596]
[1770647962277,31.99847,2038.4,2036.8,7.15005596]
[1770647962571,31.75872382,2038.4,2037.0,7.15005596]
[1770647962772,31.75872382,2038.4,2037.2,7.15005596]
[1770647963175,0.24547,2038.3,2037.2,7.15005596]
[1770647963380,5.57710249,2038.3,2037.2,7.15005596]
[1770647964885,0.00572382,2038.4,2037.2,7.15005596]
[1770647965082,5.54055206,2038.4,2037.2,7.15005596]
[1770647965273,0.25119382,2038.4,2037.2,7.15005596]
[1770647965687,0.24551,2038.0,2036.9,7.15005596]
[1770647965885,5.53486824,2038.0,2036.9,7.15005596]
[1770647966086,0.24553,2037.8,2036.9,7.15005596]
[1770647966479,40.8,2037.7,2036.9,7.15005596]
[1770647966676,6.04146,2037.4,2036.6,7.15005596]
[1770647966876,5.26042432,2037.3,2036.3,7.13436069]
[1770647967080,0.24561,2037.2,2036.3,7.13436069]
[1770647967280,77.77376986,2037.7,2036.3,7.13436069]
[1770647967485,40.8,2037.7,2036.3,7.13436069]
[1770647967680,5.22476986,2037.0,2035.2,7.15005596]
[1770647967887,0.24565,2036.8,2035.9,7.15005596]
[1770647968286,37.14023171,2036.8,2035.9,7.15005596]
[1770647968679,5.14558171,2036.7,2035.1,7.15005596]
[1770647969082,0.00381566,2036.7,2035.1,7.15530351]
[1770647969380,0.00381566,2036.7,2035.2,7.15005596]
[1770647969588,5.09500321,2036.1,2035.1,0.00524755]
[1770647969790,5.34075321,2036.0,2035.1,0.00524755]
[1770647970080,5.34075321,2036.0,2033.7,2.89061217]
[1770647970081,6.04621,2035.8,2033.7,2.89061217]
[1770647970285,0.2458,2035.6,2034.3,7.15005596]
[1770647970484,6.04517,2036.2,2034.3,7.15005596]
[1770647970485,31.751,2036.0,2034.3,7.15005596]
[1770647971090,31.751,2036.0,2033.8,6.05212]
[1770647971091,5.01059866,2036.2,2034.5,7.15005596]
[1770647971285,6.04654,2035.7,2034.5,7.15005596]
[1770647971487,6.2928,2035.6,2034.5,7.15523842]
[1770647971688,11.30387866,2035.4,2034.5,0.00518246]
[1770647971888,5.01059866,2035.3,2034.5,0.00518246]
[1770647972087,11.0337254,2035.2,2034.1,7.15005596]
[1770647972393,0.2459,2034.8,2033.8,7.15005596]
[1770647972587,0.24595,2034.4,2033.4,7.15005596]
[1770647973084,0.0047245,2034.4,2033.4,7.15350384]
[1770647973594,3.85954761,2034.2,2032.9,7.15005596]
[1770647973796,0.0047245,2034.4,2032.9,7.15005596]
[1770647974203,0.0047245,2034.4,2033.1,7.15005596]
[1770647974390,0.0047245,2034.4,2033.2,0.24609]
[1770647974585,0.0047245,2034.4,2033.3,7.15005596]
[1770647976597,4.59117599,2034.4,2033.2,0.00390965]
[1770647976997,4.59117599,2034.4,2033.2,7.15396561]
[1770647977201,4.5366499,2034.2,2033.2,7.15396561]
[1770647977394,4.7826299,2034.1,2033.2,0.00390965]
[1770647977602,4.7826599,2033.9,2033.2,0.00390965]
[1770647977799,4.7826999,2033.6,2032.1,7.15005596]
[1770647977998,40.8,2034.1,2032.3,7.15005596]
[1770647978197,4.43645918,2034.0,2032.3,7.15005596]
[1770647978707,4.43645918,2034.0,2032.3,7.1560194]
[1770647978999,40.8,2034.1,2032.9,7.15005596]
[1770647979300,0.0047245,2034.4,2033.1,7.15005596]
[1770647979499,4.39206104,2034.4,2033.1,7.15005596]
[1770647979697,4.38733654,2034.1,2033.1,7.15005596]
[1770647980296,4.38733654,2034.1,2032.4,7.15005596]
[1770647980499,0.24597,2034.2,2032.4,7.15005596]
[1770647980703,72.58,2034.3,2033.0,7.15005596]
[1770647980905,0.0047245,2034.4,2033.3,7.15005596]
[1770647981802,0.24598,2034.1,2032.9,7.15005596]
[1770647983500,0.0047245,2034.4,2032.9,7.39617596]
[1770647983698,4.20543063,2035.3,2033.8,7.15005596]
[1770647984097,40.8,2035.4,2034.0,7.15005596]